[Event "5th Baskent University Open 2022"]
[Site "Ankara"]
[Date "2022.07.06"]
[Round "7.24"]
[White "Ercan, Mehmet Fahri"]
[Black "Kocakaplan, Emre"]
[Result "1-0"]
[ECO "B33"]
[WhiteElo "1736"]
[BlackElo "1805"]
[Annotator "NA RC COMBH"]
[PlyCount "113"]
[EventDate "2022.07.02"]
[EventType "swiss"]
[EventCountry "TUR"]
[SourceTitle "playchess.com"]
[Source "ChessBase"]
[SourceQuality "1"]
[TimeControl "5400+30"]

1. e4 {[%emt 0:11:00]} c5 {[%emt 0:01:00]} 2. Nf3 {[%emt 0:00:30]} Nc6 {[%emt 0:00:00]} 3. d4 {[%emt 0:00:30]} cxd4 {[%emt 0:00:00]} 4. Nxd4 {[%emt 0:00:30]} Nf6 {[%emt 0:00:00]} 5. Nc3 {[%emt 0:00:00]} e5 {[%emt 0:00:00]} 6. Ndb5 {[%emt 0:00:00]} d6 {[%emt 0:00:30]} 7. Bg5 {[%emt 0:02:30]} a6 {[%emt 0:00:00]} 8. Na3 {[%emt 0:00:00]} b5 {[%emt 0:00:00]} 9. Bxf6 {[%emt 0:02:00]} gxf6 {[%emt 0:00:30]} 10. Nd5 {[%emt 0:00:00]} Bg7 {[%emt 0:00:00]} 11. Bd3 {[%emt 0:00:00]} Ne7 {[%emt 0:01:00]} 12. Nxe7 {[%emt 0:03:30]} Qxe7 {[%emt 0:00:00]} 13. O-O {[%emt 0:00:30]} f5 {[%emt 0:05:00]} 14. c3 {[%emt 0:05:30]} O-O {[%emt 0:04:30]} 15. Nc2 {[%emt 0:01:30]} Rb8 {[%emt 0:04:30]} 16. Qh5 {[%emt 0:13:30]} fxe4 {[%emt 0:06:30]} 17. Bxe4 {[%emt 0:01:30]} f5 {[%emt 0:00:30]} 18. Bd5+ {[%emt 0:00:30]} Be6 {[%emt 0:01:30]} 19. Nb4 {[%emt 0:01:30]} Bxd5 {[%emt 0:20:30]} 20. Nxd5 {[%emt 0:00:00]} Qf7 {[%emt 0:02:30]} 21. Qd1 {[%emt 0:05:00]} a5 {[%emt 0:07:30]} 22. Qb3 {[%emt 0:05:30]} Rb7 {[%emt 0:10:30]} 23. Rad1 {[%emt 0:01:30]} f4 {[%emt 0:00:30]} 24. f3 {[%emt 0:00:30]} Rc8 {[%emt 0:01:30]} 25. Rd3 {[%emt 0:05:30]} Rc5 {[%emt 0:02:30]} 26. Rfd1 {[%emt 0:00:30]} h5 {[%emt 0:03:30]} 27. R1d2 {[%emt 0:01:30]} Kh8 {[%emt 0:04:30]} 28. Qd1 {[%emt 0:03:30]} Bf8 {[%emt 0:09:52]} 29. Qe1 {[%emt 0:00:30]} Qf5 {[%emt 0:02:19]} 30. Qh4 {[%emt 0:02:30]} b4 {[%emt 0:02:14]} 31. Qf6+ {[%emt 0:02:30]} Qxf6 {[%emt 0:00:30]} 32. Nxf6 {[%emt 0:00:30]} bxc3 {[%emt 0:02:07]} 33. bxc3 {[%emt 0:00:00]} Rb1+ {[%emt 0:02:46]} 34. Kf2 {[%emt 0:00:00]} Be7 {[%emt 0:03:15]} 35. Ne4 {[%emt 0:00:30]} Rc6 {[%emt 0:00:04]} 36. Rd5 {[%emt 0:00:00]} Rh1 {[%emt 0:00:50]} 37. h3 {[%emt 0:01:00]} Rb6 {[%emt 0:01:34]} 38. Rxa5 {[%emt 0:00:30]} Bh4+ {[%emt 0:01:40]} 39. Ke2 {[%emt 0:00:30]} Re1+ {[%emt 0:00:48]} 40. Kd3 {[%emt 0:00:30]} Re3+ {[%emt 0:00:38]} 41. Kc4 {[%emt 0:03:30]} Be1 {[%emt 0:00:45]} 42. Rc2 {[%emt 0:01:30]} Kg7 {[%emt 0:01:40]} 43. Ra7+ {[%emt 0:02:30]} Kg6 {[%emt 0:01:20]} 44. a4 {[%emt 0:00:30]} Kf5 {[%emt 0:00:22]} 45. a5 {[%emt 0:00:30]} Rc6+ {[%emt 0:00:40]} 46. Kd5 {[%emt 0:00:30]} Rcxc3 {[%emt 0:00:33]} 47. Nxc3 {[%emt 0:00:30]} Bxc3 {[%emt 0:00:30]} 48. Kxd6 {[%emt 0:00:30]} Rd3+ {[%emt 0:00:30]} 49. Kc6 {[%emt 0:00:30]} Bd4 {[%emt 0:00:30]} 50. Rb7 {[%emt 0:00:30]} Ra3 {[%emt 0:00:30]} 51. Rb5 {[%emt 0:00:30]} Bc3 {[%emt 0:00:00]} 52. Kb6 {[%emt 0:01:30]} Ke6 {[%emt 0:00:00]} 53. a6 {[%emt 0:00:30]} Kd6 {[%emt 0:00:32]} 54. Rxc3 {[%emt 0:01:30]} Rxc3 {[%emt 0:00:03]} 55. a7 {[%emt 0:00:00]} Rc8 {[%emt 0:01:29]} 56. Kb7 {[%emt 0:00:00]} Rc7+ {[%emt 0:00:13]} 57. Kb8 {[%emt 0:00:30]} 1-0

[Event "5th Baskent University Open 2022"]
[Site "Ankara"]
[Date "2022.07.06"]
[Round "8.2"]
[White "Gunduz, Umut Erdem"]
[Black "Ozsoy, Alimert"]
[Result "1/2-1/2"]
[ECO "B67"]
[WhiteElo "2368"]
[BlackElo "2263"]
[Annotator "TA"]
[PlyCount "48"]
[EventDate "2022.07.02"]
[EventType "swiss"]
[EventCountry "TUR"]
[SourceTitle "playchess.com"]
[Source "ChessBase"]
[SourceQuality "1"]
[TimeControl "5400+30"]

{[%evp 21,35,-29,0,-1,0,0,0,-47,-30,-46,-22,-45,-40,-54,-57,-56]} 1. e4 {[%emt 0:01:00]} c5 {[%emt 0:02:00]} 2. Nf3 {[%emt 0:00:00]} Nc6 {[%emt 0:00:30]} 3. d4 {[%emt 0:00:00]} cxd4 {[%emt 0:00:30]} 4. Nxd4 {[%emt 0:00:30]} Nf6 {[%emt 0:00:30]} 5. Nc3 {[%emt 0:00:30]} d6 {[%emt 0:00:00]} 6. Bg5 {[%emt 0:00:00]} e6 {[%emt 0:00:00]} 7. Qd2 {[%emt 0:00:00]} a6 {[%emt 0:00:30]} 8. O-O-O {[%emt 0:00:00]} Bd7 {[%emt 0:00:00]} 9. f4 {[%emt 0:00:00]} Be7 {[%emt 0:02:00]} 10. Nxc6 {[%emt 0:02:30]} Bxc6 {[%emt 0:01:30]} 11. Qe1 {[%emt 0:00:30]} b5 {[%emt 0:03:30]} 12. e5 {[%emt 0:01:30] B67: Sicilian: Richter-Rauzer: 7...a6 8 0-0-0 Bd7, lines without 9 f4 Be7.} Nd5 {[%emt 0:01:30]} 13. Bxe7 {[%emt 0:00:30]} Qxe7 {[%emt 0:00:30]} 14. Ne4 {[%emt 0:00:30]} (14. Be2 $11) 14... dxe5 $15 {[%emt 0:01:30]} 15. fxe5 {[%emt 0:00:00]} O-O {[%emt 0:01:30]} 16. Bd3 {[%emt 0:02:00]} Nf4 {[%emt 0:04:30]} 17. Rf1 {[%emt 0:15:30]} Ng6 {[%emt 0:04:30]} ({But not} 17... Nxg2 18. Qd2 $16) 18. Qg3 $1 {[%emt 0:03:30] [#] White got outplayed after the opening.  Weighted Error Value: White=0.13 (very precise) /Black=0.06 (flawless)} {Predecessor:} Qh4 $146 19. Qxh4 Nxh4 20. g3 Nf5 21. Rde1 Ra7 22. Ng5 h6 23. Bxf5 exf5 24. Nf3 Rc8 {0-1 (34) Gafner,E (2296)-Khismatullin,D (2662) Olginka 2011} 1/2-1/2

[Event "5th Baskent University Open 2022"]
[Site "Ankara"]
[Date "2022.07.06"]
[Round "8.3"]
[White "Eynullayev, Atilla"]
[Black "Annaberdiev, Meilis"]
[Result "0-1"]
[ECO "A53"]
[WhiteElo "2333"]
[BlackElo "2484"]
[Annotator "TA"]
[PlyCount "86"]
[EventDate "2022.07.02"]
[EventType "swiss"]
[EventCountry "TUR"]
[SourceTitle "playchess.com"]
[Source "ChessBase"]
[SourceQuality "1"]
[TimeControl "5400+30"]

{[%evp 11,86,0,0,-5,2,14,9,-9,0,-47,0,0,0,0,0,0,8,6,24,14,30,0,18,0,24,16,16,10,8,22,26,20,51,25,20,5,95,90,83,0,0,-160,-147,-151,-150,-155,-134,-179,-166,-185,-176,-175,-153,-150,-144,-131,-115,-152,-146,-180,-179,-214,-198,-330,-291,-328,-320,-357,-357,-418,-429,-421,-419,-389,-392,-365,-360]} 1. d4 {[%emt 0:01:00]} d6 {[%emt 0:02:00]} 2. c4 {[%emt 0:00:30]} e5 {[%emt 0:00:30]} 3. Nc3 {[%emt 0:00:00]} exd4 {[%emt 0:00:00]} 4. Qxd4 {[%emt 0:00:00]} Nc6 {[%emt 0:00:00]} 5. Qd2 {[%emt 0:00:00]} Nf6 {[%emt 0:00:30]} 6. e4 {[%emt 0:00:00]} g6 {[%emt 0:00:30]} 7. Bd3 {[%emt 0:00:00] is the new trend. A53: Old Indian Defence without Nf3.} Bg7 {[%emt 0:00:30]} 8. Nge2 {[%emt 0:00:00]} Ng4 {[%emt 0:08:30] [#]} 9. h3 $146 {[%emt 0:10:30] The position is equal.} ({Predecessor:} 9. O-O Qh4 10. h3 Nge5 11. f4 Nxd3 12. Qxd3 O-O 13. Be3 f5 14. Bf2 Qd8 15. exf5 Bxf5 {½-½ (69) Chan,R (2236)-Ibarra Jerez,J (2475) Chess.com INT 2016}) 9... Nge5 {[%emt 0:00:30]} 10. b3 {[%emt 0:01:30]} a5 {[%emt 0:04:30]} (10... O-O $1 $15 {is superior.}) 11. Bc2 $11 {[%emt 0:05:30]} a4 {[%emt 0:01:30]} 12. Rb1 {[%emt 0:00:00]} axb3 {[%emt 0:00:30]} 13. axb3 {[%emt 0:00:00]} Nb4 {[%emt 0:00:30]} 14. O-O {[%emt 0:11:30]} O-O {[%emt 0:08:30]} 15. Bb2 {[%emt 0:17:30]} c6 {[%emt 0:03:30]} 16. f4 {[%emt 0:12:30]} (16. Nd1 $5 {[%cal Rd2b4]} Nxc2 17. Qxc2 $11) 16... Nd7 {[%emt 0:00:30][%cal Be5d7,Bd7c5,Bc5e6][%mdl 32]} 17. Na4 {[%emt 0:08:30]} Bxb2 {[%emt 0:09:30]} 18. Qxb4 {[%emt 0:03:30]} Bf6 {[%emt 0:00:30]} 19. Qxd6 {[%emt 0:00:30]} Be7 {[%emt 0:00:30]} 20. Qd1 {[%emt 0:00:30]} Nc5 {[%emt 0:00:00]} 21. Nac3 {[%emt 0:00:30]} Qb6 {[%emt 0:00:00][%csl LRb3,LRe4]} 22. Qd4 {[%emt 0:02:30]} Rd8 {[%emt 0:04:30]} 23. Qe3 {[%emt 0:00:30]} Qb4 {[%emt 0:00:30]} (23... Rd2 $11 24. Rb2 (24. Qxd2 $2 {perishes.} Nxe4+ 25. Qd4 Bc5 $19) 24... Qd8) 24. Kh1 $16 {[%emt 0:01:30]} Ra3 {[%emt 0:02:30][%cal Rc5b3]} 25. Nc1 {[%emt 0:03:30]} (25. Rfd1 $16) 25... Ne6 $1 $11 {[%emt 0:02:30]} 26. Rd1 $2 {[%emt 0:04:24] [#] Prevents Nd4. White is on the road to losing.} ({Better is} 26. N1e2 $11) 26... Rxd1+ $17 {[%emt 0:11:30]} 27. Nxd1 {[%emt 0:08:38]} Bc5 {[%emt 0:00:30] Black is more active.} 28. Qc3 {[%emt 0:00:42]} Nxf4 {[%emt 0:06:30]} 29. Nd3 {[%emt 0:00:30]} Nxd3 {[%emt 0:00:30]} 30. Bxd3 {[%emt 0:00:30]} Qxc3 {[%emt 0:00:30]} 31. Nxc3 {[%emt 0:00:30]} Bd4 {[%emt 0:00:30]} 32. Ne2 {[%emt 0:00:28]} Be5 {[%emt 0:00:30]} 33. Kg1 {[%emt 0:01:17]} Ra2 {[%emt 0:01:30] [#] White must now prevent ...Rd2.} 34. Kf2 {[%emt 0:00:37]} Bd4+ {[%emt 0:00:30]} 35. Ke1 {[%emt 0:00:42]} Be3 {[%emt 0:00:30]} 36. b4 {[%emt 0:01:45]} Be6 {[%emt 0:00:30]} 37. c5 {[%emt 0:01:00]} (37. Rd1 {was called for.}) 37... Kg7 {[%emt 0:00:30]} 38. e5 {[%emt 0:02:58]} h5 {[%emt 0:00:30]} 39. h4 {[%emt 0:00:12]} Kh6 {[%emt 0:01:30]} 40. Be4 {[%emt 0:00:30]} Bc4 {[%emt 0:00:00] This bishop pair is nice.} 41. Bf3 {[%emt 0:00:14]} g5 {[%emt 0:02:00]} 42. hxg5+ {[%emt 0:00:32]} Kxg5 {[%emt 0:00:00]} 43. g3 {[%emt 0:00:04]} Bd3 {[%emt 0:00:00] Weighted Error Value: White=0.24 (precise) /Black=0.12 (very precise)} 0-1

[Event "5th Baskent University Open 2022"]
[Site "Ankara"]
[Date "2022.07.06"]
[Round "8.4"]
[White "Caputcuoglu, Zeki Berke"]
[Black "Sevgi, Volkan"]
[Result "1/2-1/2"]
[ECO "C92"]
[WhiteElo "2203"]
[BlackElo "2305"]
[Annotator "TA"]
[PlyCount "25"]
[EventDate "2022.07.02"]
[EventType "swiss"]
[EventCountry "TUR"]
[SourceTitle "playchess.com"]
[Source "ChessBase"]
[SourceQuality "1"]
[TimeControl "5400+30"]

{[%evp 24,25,42,0]} 1. e4 {[%emt 0:01:00]} e5 {[%emt 0:01:00]} 2. Nf3 {[%emt 0:00:30]} Nc6 {[%emt 0:00:30]} 3. Bb5 {[%emt 0:00:30][%cal Bf1b5,Bb5a4,Ba4b3][%mdl 32]} a6 {[%emt 0:00:00]} 4. Ba4 {[%emt 0:00:00]} Nf6 {[%emt 0:00:00]} 5. O-O {[%emt 0:00:00]} b5 {[%emt 0:00:30]} 6. Bb3 {[%emt 0:00:00]} Be7 {[%emt 0:00:30]} 7. c3 {[%emt 0:00:00]} d6 {[%emt 0:00:30]} 8. Re1 {[%emt 0:00:00]} O-O {[%emt 0:00:30]} 9. h3 {[%emt 0:00:00]} Re8 {[%emt 0:00:30] [#]} 10. Ng5 $146 {[%emt 0:00:30]} ({Predecessor:} 10. d4 Bb7 11. Ng5 Rf8 12. Nf3 Re8 13. Ng5 Rf8 14. Nf3 Re8 {½-½ (14) Giri,A (2761)-Maghsoodloo,P (2699) Chess.com INT 2022}) 10... Rf8 {[%emt 0:00:00]} 11. Nf3 {[%emt 0:00:00]} Re8 {[%emt 0:00:00]} 12. Ng5 {[%emt 0:00:00] 12.a3 gains popularity.} Rf8 {[%emt 0:00:00]} 13. Nf3 {[%emt 0:00:00]} 1/2-1/2

[Event "5th Baskent University Open 2022"]
[Site "Ankara"]
[Date "2022.07.06"]
[Round "8.5"]
[White "Unat, Can Haktan"]
[Black "Dedebas, Emre Emin"]
[Result "1/2-1/2"]
[ECO "C54"]
[WhiteElo "2242"]
[BlackElo "2321"]
[Annotator "TA"]
[PlyCount "52"]
[EventDate "2022.07.02"]
[EventType "swiss"]
[EventCountry "TUR"]
[SourceTitle "playchess.com"]
[Source "ChessBase"]
[SourceQuality "1"]
[TimeControl "5400+30"]

{[%evp 11,52,0,0,-9,-8,-17,-13,0,0,0,0,0,0,0,0,0,-3,-5,0,0,0,0,0,0,7,-45,-40,-50,-54,-61,-55,-53,-56,-70,-63,-54,-49,-48,-47,-58,-30,-45,-43]} 1. e4 {[%emt 0:01:00]} e5 {[%emt 0:08:00]} 2. Nf3 {[%emt 0:00:30]} Nc6 {[%emt 0:00:00]} 3. Bc4 {[%emt 0:00:30]} Bc5 {[%emt 0:00:00]} 4. c3 {[%emt 0:00:00][%cal Bc2c3,Bc3d4,Bd4d5][%mdl 32]} Nf6 {[%emt 0:00:30][%cal Bg8f6,Bf6e4,Be4d2][%mdl 32]} 5. d4 {[%emt 0:00:00]} exd4 {[%emt 0:00:30]} 6. cxd4 {[%emt 0:00:00]} Bb4+ {[%emt 0:00:00]} 7. Nbd2 {[%emt 0:01:00] C54: Giuoco Piano: 4 c3 Nf6, main lines with 5 d4 and 5 d3.} Nxe4 {[%emt 0:00:00]} 8. d5 {[%emt 0:00:30] [#] Hoping for 0-0.} Ne7 {[%emt 0:00:30]} 9. O-O {[%emt 0:00:30] The position is equal.} Nxd2 {[%emt 0:00:30]} 10. Bxd2 {[%emt 0:00:00] 10.Nxd2 is the hot move.} Bxd2 {[%emt 0:00:00]} 11. d6 {[%emt 0:00:00]} cxd6 {[%emt 0:00:00][%cal Od6d5] [#] ...d5! is the strong threat.} 12. Qxd2 {[%emt 0:00:00]} d5 {[%emt 0:00:00]} 13. Bxd5 {[%emt 0:01:00]} O-O {[%emt 0:01:00]} 14. Rfd1 {[%emt 0:03:30]} Nxd5 {[%emt 0:04:30]} 15. Qxd5 {[%emt 0:00:30]} d6 {[%emt 0:00:30] [#]} 16. b3 $146 {[%emt 0:00:30]} ({Predecessor:} 16. Qxd6 Qxd6 17. Rxd6 Be6 18. a3 Rfd8 19. Rxd8+ Rxd8 20. Rc1 f6 21. h3 Rd7 22. Kf1 {0-1 (41) Simacek,P (2490)-Belyakov,B (2500) Pardubice 2019}) 16... h6 {[%emt 0:16:30]} 17. Rac1 {[%emt 0:01:30]} Qb6 {[%emt 0:07:30]} 18. Nd4 {[%emt 0:13:30]} ({White should play} 18. Qxd6 $11 Bg4 19. Qf4) 18... Bd7 {[%emt 0:05:30]} 19. Rc3 {[%emt 0:05:30]} Rfe8 {[%emt 0:12:30]} 20. Rf3 {[%emt 0:08:30]} Re7 {[%emt 0:02:30]} 21. h3 {[%emt 0:00:00] Against Bg4} Rae8 {[%emt 0:23:31] aiming for ...Qc5.} 22. Nf5 {[%emt 0:20:00]} Bxf5 {[%emt 0:00:30]} 23. Rxf5 {[%emt 0:00:30]} Qd8 {[%emt 0:00:30]} 24. Rd3 {[%emt 0:00:30]} Qd7 {[%emt 0:00:30]} 25. Kh2 {[%emt 0:00:30]} Re6 {[%emt 0:00:30]} 26. Rf4 {[%emt 0:00:30]} Qc6 {[%emt 0:05:09] Weighted Error Value: White=0.09 (flawless) /Black=0.03 (flawless)} 1/2-1/2

[Event "5th Baskent University Open 2022"]
[Site "Ankara"]
[Date "2022.07.06"]
[Round "8.6"]
[White "Ozer, Omer Faruk"]
[Black "Makaraci, Tunahan"]
[Result "1-0"]
[ECO "D02"]
[WhiteElo "2317"]
[BlackElo "2130"]
[Annotator "TA"]
[PlyCount "61"]
[EventDate "2022.07.02"]
[EventType "swiss"]
[EventCountry "TUR"]
[SourceTitle "playchess.com"]
[Source "ChessBase"]
[SourceQuality "1"]
[TimeControl "5400+30"]

{[%evp 13,61,11,27,10,10,7,2,0,0,0,20,20,23,34,33,16,18,20,14,3,40,14,46,58,42,45,179,165,164,108,111,23,36,30,28,35,40,26,539,517,29989,29990,29989,1019,29984,29974,29984,29985,5733,5389]} 1. d4 {[%emt 0:01:00]} d5 {[%emt 0:01:00]} 2. Nf3 {[%emt 0:01:30]} c5 {[%emt 0:01:30]} 3. g3 {[%emt 0:01:30]} Nc6 {[%emt 0:00:30]} 4. Bg2 {[%emt 0:00:00]} e6 {[%emt 0:00:30]} 5. O-O {[%emt 0:00:00]} Nf6 {[%emt 0:00:30]} 6. b3 {[%emt 0:01:30]} cxd4 {[%emt 0:00:30]} 7. Nxd4 {[%emt 0:00:30]} Bc5 {[%emt 0:00:30]} 8. Nxc6 {[%emt 0:03:30] D02: 1 d4 d5 2 Nf3 sidelines, including 2...Nf6 3 g3 and 2...Nf6 3 Bf4.} bxc6 {[%emt 0:00:30]} 9. c4 {[%emt 0:00:30]} O-O {[%emt 0:00:30]} 10. Qc2 {[%emt 0:00:30] And now cxd5 would win. The position is equal.} Qe7 {[%emt 0:02:30]} 11. Bb2 {[%emt 0:08:30]} Ba6 {[%emt 0:00:30]} 12. Nd2 {[%emt 0:00:30]} Rac8 {[%emt 0:03:30]} 13. a3 {[%emt 0:14:30]} Bb6 {[%emt 0:02:30] [#]} 14. Rac1 $146 {[%emt 0:06:30]} ({Predecessor:} 14. b4 dxc4 15. Nxc4 c5 16. Nxb6 axb6 17. Rfe1 cxb4 18. Qa4 Bc4 19. axb4 b5 20. Qa5 {½-½ (30) Gaspariants,V (2335)-Tuovinen,J Helsinki 1997}) 14... Rfd8 {[%emt 0:01:30]} 15. e3 {[%emt 0:00:30]} c5 {[%emt 0:07:30]} 16. Rfe1 {[%emt 0:06:30]} (16. Rfd1 {keeps more tension.} Ng4 17. cxd5 exd5 18. Qf5) 16... Ba5 {[%emt 0:03:30]} 17. Red1 {[%emt 0:00:30]} (17. b4 $5 Bb6 18. cxd5 $11) 17... Bb7 {[%emt 0:01:30]} 18. cxd5 {[%emt 0:01:30]} exd5 {[%emt 0:00:30]} 19. Qf5 {[%emt 0:05:30]} Ne4 {[%emt 0:04:30]} (19... Bb6 $14) 20. Nxe4 $18 {[%emt 0:06:30]} dxe4 {[%emt 0:00:30]} 21. b4 {[%emt 0:01:30]} ({White should try} 21. Rxd8+ $18 Rxd8 22. Rxc5) 21... g6 $16 {[%emt 0:01:30] [#]} 22. Qf4 {[%emt 0:08:30] White is more active.} (22. Rxd8+ $1 $16 Bxd8 23. Qg4) 22... cxb4 {[%emt 0:03:30]} 23. Bf6 $40 {[%emt 0:00:00][%mdl 128] White is up to no good.} Rxd1+ {[%emt 0:02:30]} 24. Rxd1 {[%emt 0:00:00]} Qe6 {[%emt 0:01:30]} 25. h4 {[%emt 0:02:30][%cal Og2h3] Bh3! is the strong threat.} bxa3 $2 {[%emt 0:00:30][%mdl 8192] [#]} (25... Qf5 $1 $11 {and Black is okay.} 26. Qxf5 gxf5) 26. Bh3 $1 $18 {[%emt 0:00:30][%mdl 64] Deflection} Qa6 {[%emt 0:21:30]} (26... Qe8 $18 27. Bxc8 Qxc8) 27. Bxc8 {[%emt 0:06:30]} Bxc8 {[%emt 0:00:30]} 28. Qe5 {[%emt 0:00:30]} (28. Rd6 $142 Qe2 29. Qxe4 Qe1+ 30. Kg2 Bh3+ 31. Kxh3 Qf1+ 32. Kg4 Qe2+ 33. f3) 28... Be6 {[%emt 0:02:30]} 29. Bh8 {[%emt 0:02:30][%csl Gh8][%cal Re5g7]} Kf8 {[%emt 0:00:30]} 30. Bg7+ {[%emt 0:00:30]} Ke8 {[%emt 0:00:30]} 31. Qc5 {[%emt 0:00:30] Weighted Error Value: White=0.12 (very precise) /Black=1.09} 1-0

[Event "5th Baskent University Open 2022"]
[Site "Ankara"]
[Date "2022.07.06"]
[Round "8.7"]
[White "Bekiragaoglu, Umut"]
[Black "Huseyinoglu, Alihan"]
[Result "1/2-1/2"]
[ECO "B65"]
[WhiteElo "2067"]
[BlackElo "2213"]
[Annotator "TA"]
[PlyCount "90"]
[EventDate "2022.07.02"]
[EventType "swiss"]
[EventCountry "TUR"]
[SourceTitle "playchess.com"]
[Source "ChessBase"]
[SourceQuality "1"]
[TimeControl "5400+30"]

{[%evp 23,90,0,29,0,31,11,50,27,43,0,0,0,0,0,0,0,0,0,12,18,10,-20,-22,-23,-25,-25,-25,-27,-25,-25,-25,-26,-20,-27,-27,-27,-19,-21,-19,-25,-23,-23,-23,-38,-18,-29,-18,-18,-18,-18,-18,-18,-18,-41,-37,-29,-33,-38,-28,-28,-9,-9,-9,-9,-9,-9,-7,-7,0]} 1. e4 {[%emt 0:02:00]} c5 {[%emt 0:01:00]} 2. Nf3 {[%emt 0:00:30]} Nc6 {[%emt 0:00:30]} 3. d4 {[%emt 0:00:30]} cxd4 {[%emt 0:00:30]} 4. Nxd4 {[%emt 0:00:30]} Nf6 {[%emt 0:01:30]} 5. Nc3 {[%emt 0:00:30]} d6 {[%emt 0:00:00]} 6. Bg5 {[%emt 0:00:00]} e6 {[%emt 0:00:00]} 7. Qd2 {[%emt 0:00:00]} Be7 {[%emt 0:01:30]} 8. O-O-O {[%emt 0:01:30]} O-O {[%emt 0:00:30]} 9. f4 {[%emt 0:03:30]} Nxd4 {[%emt 0:01:30]} 10. Qxd4 {[%emt 0:00:30]} Qa5 {[%emt 0:00:00]} 11. Qa4 {[%emt 0:07:30] [#]} Qc5 $146 {[%emt 0:27:00]} ({Predecessor:} 11... Qxa4 12. Nxa4 Bd7 13. Nc3 Bc6 14. Bb5 Rfd8 15. Bxc6 bxc6 16. e5 dxe5 17. fxe5 Nd5 18. Ne4 Bxg5+ 19. Nxg5 Ne3 20. Rxd8+ Rxd8 {½-½ (47) He,T (2133)-Pearson,M (2344) Las Vegas 2011}) 12. Qd4 {[%emt 0:03:30]} Qa5 {[%emt 0:02:30]} 13. Qa4 {[%emt 0:00:00] B65: Sicilian: Richter-Rauzer: 7...Be7 8 0-0-0 0-0 9 f4 Nxd4.} Qc7 {[%emt 0:05:30]} 14. Nb5 {[%emt 0:03:00]} Qb6 {[%emt 0:01:30]} 15. Qd4 {[%emt 0:02:30] White is slightly better.} (15. Qa3 $5 {[%cal Re4e5]}) 15... Qa5 {[%emt 0:02:30]} 16. Nxd6 {[%emt 0:02:30]} (16. Bxf6 {is more complex.} Bxf6 17. Qxd6 Qxa2 18. e5) 16... Bxd6 {[%emt 0:12:30]} 17. Qxd6 {[%emt 0:00:00] [#] And now Bxf6 would win.} Nxe4 {[%emt 0:00:30]} 18. Qxf8+ {[%emt 0:00:00]} Kxf8 {[%emt 0:00:30]} 19. Rd8+ {[%emt 0:00:00]} Qxd8 {[%emt 0:00:00]} 20. Bxd8 {[%emt 0:00:00]} Bd7 {[%emt 0:01:00]} 21. Ba5 {[%emt 0:00:30]} Bc6 {[%emt 0:00:00]} 22. Bd3 {[%emt 0:01:30]} Nf2 {[%emt 0:01:00][%csl LRg2,LRh1]} 23. Rg1 {[%emt 0:00:30]} Nxd3+ {[%emt 0:00:30]} 24. cxd3 $11 {[%emt 0:00:30][%mdl 4096] Endgame KRB-KRB} h5 {[%emt 0:02:30]} 25. g3 {[%emt 0:00:30]} f6 {[%emt 0:02:30]} 26. Kd2 {[%emt 0:01:30]} Kf7 {[%emt 0:00:00]} 27. Ke3 {[%emt 0:00:00]} Rh8 {[%emt 0:01:00]} 28. h3 {[%emt 0:00:00]} Bd5 {[%emt 0:02:30]} 29. a3 {[%emt 0:00:30]} Rc8 {[%emt 0:00:30]} 30. Bc3 {[%emt 0:00:30]} Bc6 {[%emt 0:00:30]} 31. g4 {[%emt 0:04:30]} hxg4 {[%emt 0:01:30]} 32. hxg4 {[%emt 0:00:00]} Rh8 {[%emt 0:00:30]} 33. Rg3 {[%emt 0:00:00]} Kg6 {[%emt 0:00:30]} 34. g5 {[%emt 0:00:30] [#] Threatens to win with gxf6+.} Kf5 {[%emt 0:02:30]} 35. gxf6 {[%emt 0:00:30]} gxf6 {[%emt 0:00:00]} 36. Rg7 {[%emt 0:00:30]} Rh3+ {[%emt 0:01:00]} 37. Kd2 {[%emt 0:00:00]} Bd5 {[%emt 0:02:30]} 38. Rg8 {[%emt 0:03:00]} Rh2+ {[%emt 0:00:30]} 39. Ke1 {[%emt 0:00:30]} a6 {[%emt 0:12:29]} 40. a4 {[%emt 0:08:30]} Bb3 {[%emt 0:01:10]} 41. a5 {[%emt 0:00:30]} e5 {[%emt 0:06:44]} 42. Rf8 {[%emt 0:01:30] The position is equal.} Kxf4 {[%emt 0:04:07]} 43. Rxf6+ {[%emt 0:00:30]} Ke3 {[%emt 0:00:30]} 44. Bxe5 {[%emt 0:00:30]} Rh1+ {[%emt 0:00:30]} 45. Rf1 {[%emt 0:00:30]} Rxf1+ {[%emt 0:00:30] Weighted Error Value: White=0.06 (flawless) /Black=0.06 (flawless)} 1/2-1/2

[Event "5th Baskent University Open 2022"]
[Site "Ankara"]
[Date "2022.07.06"]
[Round "8.9"]
[White "Bicer, Atakan Mert"]
[Black "Yildirim, Ibrahim Halil"]
[Result "1-0"]
[ECO "C88"]
[WhiteElo "2368"]
[BlackElo "2106"]
[Annotator "TA"]
[PlyCount "47"]
[EventDate "2022.07.02"]
[EventType "swiss"]
[EventCountry "TUR"]
[SourceTitle "playchess.com"]
[Source "ChessBase"]
[SourceQuality "1"]
[TimeControl "5400+30"]

{[%evp 16,25,54,27,51,11,57,21,147,145,268,266]} 1. e4 {[%emt 0:01:00]} e5 {[%emt 0:02:00]} 2. Nf3 {[%emt 0:00:30]} Nc6 {[%emt 0:00:30]} 3. Bb5 {[%emt 0:00:30][%cal Bf1b5,Bb5a4,Ba4b3][%mdl 32]} a6 {[%emt 0:00:30]} 4. Ba4 {[%emt 0:00:30]} Nf6 {[%emt 0:00:30]} 5. O-O {[%emt 0:00:00]} Be7 {[%emt 0:00:00]} 6. Re1 {[%emt 0:00:00]} b5 {[%emt 0:00:00]} 7. Bb3 {[%emt 0:00:00]} O-O {[%emt 0:00:00]} 8. a4 {[%emt 0:00:00]} Rb8 {[%emt 0:03:00]} 9. c3 {[%emt 0:00:30]} d6 {[%emt 0:03:30] C88: Closed Ruy Lopez: Anti-Marshall Systems.} 10. h3 {[%emt 0:00:30]} h6 {[%emt 0:03:30]} (10... b4 $11 {feels stronger.}) 11. d4 {[%emt 0:01:30][%cal Bd2d4,Bd4d5][%mdl 32] White wants to play axb5.} Re8 {[%emt 0:06:30]} (11... b4 $11 {keeps the balance.}) 12. axb5 $16 {[%emt 0:10:30]} axb5 {[%emt 0:00:30]} (12... Rxb5 $16 {was called for.} 13. Ba4 Bd7 14. Bxb5 axb5) 13. d5 {[%emt 0:00:30] [#] Black did not feel at home in the position after the opening.  Weighted Error Value: White=0.21 (precise) /Black=0.89} {Predecessor:} Rb6 $146 14. dxc6 Rxc6 15. Nbd2 Bf8 16. Nf1 Rb6 17. Ng3 g6 18. Be3 Rb8 19. Nh4 Kg7 20. Qd2 Ng8 21. Nf3 Bd7 22. Ra7 Ne7 23. Rea1 Kh7 24. Bxf7 {1-0 (24) Roebers,J (2154)-Matveeva,O (2171) Chess.com INT 2021} 1-0